bitfinex/quotes_ETHUSD_20241225
["timestamp","ask_amount","ask_price","bid_price","bid_amount"]
[1735165060473,2.30848,3465.5,3464.8,0.7841]
[1735165060675,0.5759299,3465.4,3464.8,0.7841]
[1735165061384,0.8168,3465.2,3464.2,1.20896223]
[1735165061684,3.23724886,3465.4,3464.1,1.20896223]
[1735165061685,0.8168,3464.9,3464.1,1.20896223]
[1735165062273,2.30893,3464.8,3464.1,1.20896223]
[1735165062570,2.309,3464.7,3464.1,1.20896223]
[1735165062940,0.8168,3464.5,3463.9,35.0]
[1735165063138,3.12593,3464.5,3463.7,0.8308]
[1735165063686,3.12593,3464.5,3463.8,35.0]
[1735165065482,0.8168,3464.5,3463.8,35.0]
[1735165065785,0.8168,3464.5,3463.9,2.84628631]
[1735165066341,0.8168,3464.5,3463.7,0.8308]
[1735165066671,3.12593,3464.5,3463.8,35.0]
[1735165073351,0.8168,3464.5,3463.8,35.0]
[1735165073574,0.7755,3464.1,3463.5,0.7871]
[1735165074105,0.7755,3464.1,3463.6,35.0]
[1735165074460,0.7755,3464.1,3463.5,0.7871]
[1735165074675,3.0849,3464.1,3463.2,0.7871]
[1735165074923,3.0849,3464.1,3463.3,0.43061822]
[1735165075077,3.0849,3464.1,3463.3,35.43061822]
[1735165076588,0.7755,3464.1,3463.3,35.0]
[1735165077712,2.30956,3463.9,3462.9,1.77863877]
[1735165077909,2.30967,3463.7,3462.9,0.7871]
[1735165078091,0.7755,3463.8,3463.0,35.0]
[1735165078712,3.0851,3463.8,3463.0,35.0]
[1735165085937,0.7755,3463.8,3463.0,35.0]
[1735165086154,0.7755,3463.8,3463.0,37.31012]
[1735165086303,0.7755,3463.8,3463.1,2.84628631]
[1735165086691,0.7755,3463.8,3462.9,0.7871]
[1735165086886,0.7755,3463.8,3463.0,35.0]
[1735165087142,0.7755,3463.8,3463.0,37.31013]
[1735165095168,0.7755,3463.8,3463.0,35.0]
[1735165101052,0.8244,3463.6,3463.0,35.0]
[1735165102176,0.8244,3463.6,3463.0,36.63477606]
[1735165104204,0.8244,3463.6,3463.0,1.63477606]
[1735165104348,0.8244,3463.6,3462.7,2.31031]
[1735165104848,0.8244,3463.6,3462.8,35.0]
[1735165105042,0.8244,3463.6,3462.8,37.31025]
[1735165105371,0.8244,3463.6,3462.8,39.80310635]
[1735165106294,0.8244,3463.6,3462.9,2.49285635]
[1735165106589,0.8244,3463.6,3463.0,2.84628631]
[1735165107305,0.8244,3463.6,3463.1,0.99714254]
[1735165108489,0.8244,3463.6,3463.2,2.4948284]
[1735165109441,0.8244,3463.6,3463.3,0.99714254]
[1735165110545,0.8244,3463.6,3463.0,1.20896223]
[1735165110845,0.8244,3463.6,3463.1,0.73295701]
[1735165111504,0.8244,3463.6,3463.1,3.23018712]
[1735165112465,0.8244,3463.6,3463.2,2.49723011]
[1735165113166,0.7778,3463.5,3463.2,2.49723011]
[1735165113927,0.7778,3463.3,3463.2,2.49723011]
[1735165114139,0.19793983,3463.3,3463.0,1.20896223]
[1735165114364,4.28945833,3463.1,3463.0,1.20896223]
[1735165115622,3.51165833,3463.1,3462.6,0.1704186]
[1735165115827,0.7778,3463.0,3462.6,0.1704186]
[1735165116745,0.7778,3462.7,3462.6,0.1704186]
[1735165122189,6.08813,3462.7,3462.6,0.1704186]
[1735165127184,0.779,3461.9,3461.2,0.7771]
[1735165128111,2.31095,3461.8,3461.1,1.20896223]
[1735165128311,2.31095,3461.8,3460.9,0.7771]
[1735165128512,2.31095,3461.8,3461.0,0.19860622]
[1735165129013,3.09002,3461.7,3461.0,0.19860622]
[1735165130291,3.09002,3461.7,3460.7,1.98606223]
[1735165130506,0.779,3461.7,3460.7,1.98606223]
[1735165130694,0.779,3461.7,3460.7,4.29771223]
[1735165131116,2.31107,3461.6,3460.7,1.98606223]
[1735165131344,2.31107,3461.6,3460.7,0.7771]
[1735165131569,2.31107,3461.6,3460.7,1.20688522]
[1735165131734,0.779,3461.7,3460.7,1.20688522]
[1735165132265,3.09,3461.7,3460.8,35.0]
[1735165138075,0.779,3461.7,3460.8,35.0]
[1735165138790,0.779,3461.7,3460.8,37.31157]
[1735165138992,0.779,3461.7,3460.8,40.15785631]
[1735165143403,0.779,3461.7,3460.8,35.0]
[1735165145055,0.779,3461.7,3460.8,37.31159]
[1735165146195,0.779,3461.7,3460.8,35.0]
[1735165146427,0.7642,3462.3,3461.3,0.791]
[1735165146606,0.7642,3462.3,3461.5,2.31113]
[1735165147005,0.7642,3462.3,3461.6,35.0]
[1735165147386,0.7642,3462.3,3461.5,2.31113]
[1735165151427,0.7642,3462.3,3461.7,2.311]
[1735165151642,0.7642,3462.6,3461.8,3.10192]
[1735165156543,0.7642,3462.6,3461.8,0.791]
[1735165156750,0.7642,3462.6,3461.9,2.3108]
[1735165157117,0.7642,3462.6,3461.9,35.0]
[1735165157319,0.7922,3463.2,3462.3,0.8331]
[1735165157751,0.7922,3463.2,3462.1,2.31067]
[1735165158288,0.7922,3463.2,3462.2,35.0]
[1735165158803,3.10221,3463.2,3462.2,35.0]
[1735165159093,2.31001,3463.2,3462.2,35.0]
[1735165159386,0.7922,3463.0,3462.2,35.0]
[1735165161323,0.7922,3463.0,3461.9,0.7613]
[1735165161590,0.7922,3463.0,3462.6,2.31039]
[1735165161757,0.778,3463.2,3462.8,2.31025]
[1735165163009,0.778,3463.2,3462.6,37.31039]
[1735165163212,0.778,3463.2,3462.6,40.15667631]
[1735165163363,0.778,3463.2,3462.7,2.31032]
[1735165163764,0.778,3463.2,3462.6,37.84628631]
[1735165164110,0.778,3463.2,3462.8,2.31026]
[1735165165326,0.778,3463.2,3462.6,37.84628631]
[1735165165531,0.778,3463.2,3462.7,5.15660631]
[1735165165736,0.778,3463.2,3462.9,2.3102]
[1735165166488,0.778,3463.8,3462.9,2.3102]
[1735165167116,0.778,3463.8,3462.7,5.15660631]
[1735165167436,0.778,3463.8,3462.8,1.51680795]
[1735165170718,0.778,3463.8,3462.8,3.82706795]
[1735165172708,0.778,3463.8,3463.1,2.31004]
[1735165172907,0.778,3463.8,3463.2,35.02887168]
[1735165173140,0.778,3463.8,3463.2,35.0]
[1735165173321,0.778,3463.8,3463.1,2.31004]
[1735165173523,0.778,3463.8,3463.0,3.45301601]
[1735165173729,0.01011496,3464.0,3463.5,2.30977]
[1735165173922,0.01011496,3464.0,3463.6,35.0]
[1735165174155,0.01011496,3464.0,3463.6,37.3097]
[1735165177259,0.01011496,3464.0,3463.6,2.3097]
[1735165177463,0.01011496,3464.0,3463.4,2.30986]
[1735165177614,0.01011496,3464.0,3463.7,35.0]
[1735165180563,0.01011496,3464.0,3463.5,0.230986]
[1735165181067,0.01011496,3464.0,3463.6,35.0]
[1735165182073,0.01011496,3464.0,3463.5,2.540776]
[1735165182366,0.01011496,3464.0,3463.6,0.7685]
[1735165182577,0.01011496,3464.0,3463.7,0.3309276]
[1735165183566,0.01011496,3464.0,3463.8,2.30957]
[1735165184140,0.01011496,3464.0,3463.9,35.0]
[1735165186664,0.01011496,3464.0,3463.9,37.30953]
[1735165187371,0.01011496,3464.0,3463.9,38.10763]
[1735165187523,0.01011496,3464.0,3463.9,40.95391631]
[1735165189737,0.7904,3464.7,3463.9,40.95391631]
[1735165191867,3.0994,3464.7,3463.9,37.84628631]
[1735165192025,0.7904,3464.6,3463.9,37.84628631]
[1735165192225,0.7904,3464.6,3464.0,2.84628631]
[1735165195162,0.7904,3464.6,3463.7,2.6405876]
[1735165195578,0.7904,3464.6,3463.8,35.0]
[1735165197491,1.20094445,3464.5,3463.8,35.0]
[1735165197663,2.3092,3464.4,3463.8,35.0]
[1735165197842,0.7904,3464.3,3463.8,35.0]
[1735165198791,3.09966,3464.3,3463.8,35.0]
[1735165199028,2.30926,3464.3,3463.8,35.0]
[1735165199295,0.7904,3464.2,3463.8,35.0]
[1735165201496,0.7904,3464.2,3463.9,1.20418985]
[1735165202073,0.7904,3464.2,3463.8,2.30959]
[1735165202600,0.7904,3464.2,3463.9,35.0]
[1735165203499,0.8105,3464.9,3463.9,35.0]
[1735165203654,0.8105,3464.9,3464.0,2.30946]
[1735165203855,0.8105,3464.9,3464.1,2.84628631]
[1735165204287,0.01011496,3464.3,3464.1,2.84628631]
[1735165205368,0.01011496,3464.3,3464.1,2.87515032]
[1735165206360,0.01011496,3464.3,3464.2,0.814]
[1735165206773,0.01011496,3464.3,3464.2,3.12333]
[1735165206977,0.01011496,3464.3,3464.2,3.72029163]
[1735165207283,0.01011496,3464.3,3464.2,36.41096163]
[1735165210128,0.01011496,3464.3,3464.2,1.41096163]
[1735165210778,0.01011496,3464.3,3464.2,36.41096163]
[1735165212125,0.01011496,3464.3,3464.2,0.59696163]
[1735165215031,0.01011496,3464.3,3464.2,2.90629163]
[1735165215532,0.01011496,3464.3,3464.2,3.69839163]
[1735165215683,0.01011496,3464.3,3464.2,38.69839163]
[1735165216534,0.01011496,3464.3,3464.2,39.69576207]
[1735165217631,0.01011496,3464.3,3464.2,40.24576207]
[1735165217856,0.01011496,3464.3,3464.2,42.90771004]
[1735165218134,0.01011496,3464.3,3464.2,44.40388261]
[1735165219636,0.01011496,3464.3,3464.2,48.21226719]
[1735165220000,0.788,3465.5,3464.6,2.309]
[1735165220186,0.788,3465.5,3464.7,0.2309]
[1735165220729,0.788,3465.5,3464.7,2.53987]
[1735165221861,0.788,3465.5,3464.7,3.33197]
[1735165223264,0.788,3465.5,3464.8,2.30892]
[1735165223786,0.788,3465.5,3464.8,0.55]
[1735165223967,1.99965068,3465.7,3465.2,3.10071]
[1735165224499,1.21165068,3465.7,3465.4,2.30852]
[1735165225036,0.788,3466.0,3465.4,2.30852]
[1735165225384,0.788,3466.0,3465.5,0.02885291]
[1735165225534,0.788,3466.0,3465.3,0.0288529]
[1735165225728,0.788,3466.0,3465.3,0.3389279]
[1735165225973,0.788,3466.0,3465.4,2.30848]
[1735165226186,1.21165068,3466.1,3465.7,0.7921]
[1735165226481,1.99965068,3466.3,3465.7,0.7921]
[1735165228186,0.788,3466.3,3465.7,0.7921]
[1735165229079,0.788,3466.3,3465.7,3.10043]
[1735165229307,0.788,3466.3,3465.8,0.310043]
[1735165230813,0.56518259,3466.5,3465.8,0.310043]
[1735165230964,3.06251,3466.7,3465.8,0.310043]
[1735165232605,0.57712631,3466.6,3465.8,0.310043]
[1735165234211,0.7548,3466.7,3465.7,3.10043]
[1735165234410,0.7548,3466.7,3465.8,2.30826]
[1735165234566,0.7548,3466.7,3465.9,2.30819]
[1735165234765,0.7548,3466.7,3466.0,0.7957]
[1735165238581,0.7548,3466.9,3466.1,2.33689666]
[1735165238811,0.7548,3466.9,3466.1,2.65015633]
[1735165240510,0.7548,3466.9,3466.1,2.62130967]
[1735165243615,0.7548,3466.9,3466.2,2.30799]
[1735165243922,0.58896569,3467.0,3466.3,0.7957]
[1735165251182,0.58896569,3467.0,3466.3,3.10363]
[1735165251528,0.58896569,3467.0,3466.4,0.46161895]
[1735165252130,0.58896569,3467.0,3466.4,35.46161895]
[1735165252834,0.7548,3467.1,3466.4,35.46161895]
[1735165256424,3.13057,3467.3,3466.4,35.46161895]
[1735165256806,0.8233,3467.3,3466.5,3.0918]
[1735165257034,0.8233,3467.3,3466.6,2.84628631]
[1735165257241,0.8233,3467.3,3466.5,3.0918]
[1735165257403,0.8233,3467.3,3466.6,35.0]
[1735165257826,0.8233,3467.3,3466.5,3.0918]
[1735165258041,1.21165068,3467.9,3467.2,1.19929984]
[1735165258341,1.21165068,3467.9,3467.3,38.09126]
[1735165258511,1.21165068,3467.9,3467.4,2.84628631]
[1735165258836,1.21165068,3468.0,3467.4,5.15346631]
[1735165259035,0.8233,3468.3,3467.4,3.50647984]
[1735165259247,0.8233,3468.3,3467.5,35.0]
[1735165259616,0.8233,3468.3,3467.6,2.30706]
[1735165259819,0.8233,3468.3,3467.7,3.63028631]
[1735165260031,0.8233,3468.3,3467.7,0.784]
[1735165260216,0.8233,3468.3,3467.8,35.0]
[1735165260609,0.7657,3468.5,3467.8,35.0]
[1735165261954,1.2044918,3469.2,3468.2,2.30664]
[1735165262119,1.2044918,3469.2,3468.3,1.027264]
[1735165262508,1.2044918,3469.2,3468.3,36.027264]
[1735165262753,1.79320589,3469.2,3468.3,36.027264]
[1735165263549,0.58871409,3469.2,3468.3,36.027264]
[1735165264888,1.06587594,3469.8,3468.7,0.7966]
[1735165265036,0.7657,3469.8,3468.8,0.34520484]
[1735165265403,0.7657,3469.8,3468.9,0.7966]
[1735165265731,0.7657,3469.8,3469.0,0.02882315]
[1735165267065,0.7657,3469.8,3468.9,0.7966]
[1735165267284,0.7657,3469.3,3467.9,2.30687]
[1735165267487,0.7657,3469.3,3468.0,0.310347]
[1735165268746,2.30608,3469.1,3468.0,0.310347]
[1735165269145,2.30608,3469.1,3468.1,0.7966]
[1735165269363,2.30594,3469.3,3468.2,0.0288299]
[1735165269587,0.7657,3469.2,3468.2,0.0288299]
[1735165269785,3.07171,3469.2,3468.2,2.84628631]
[1735165270074,2.30607,3469.1,3468.2,2.84628631]
[1735165270451,2.30607,3469.1,3468.1,0.7966]
[1735165270863,2.30607,3469.1,3468.2,35.0]
[1735165275804,0.7657,3469.2,3468.2,35.0]
[1735165275994,0.7865,3469.1,3468.2,35.0]
[1735165276316,3.09294,3468.6,3468.2,35.0]
[1735165277057,3.09294,3468.6,3467.6,0.8332]
[1735165277254,3.09294,3468.6,3467.6,1.147228]
[1735165277678,3.09294,3468.6,3467.7,35.0]
[1735165279218,2.30655,3468.4,3467.7,35.0]
[1735165279513,2.30661,3468.3,3467.7,35.0]
[1735165279685,0.7865,3468.2,3467.7,35.0]
[1735165279891,3.09317,3468.2,3467.7,35.0]
[1735165282694,2.30677,3468.1,3467.3,0.8332]
[1735165283094,2.30677,3468.1,3467.4,35.0]
[1735165292490,0.7865,3468.2,3467.4,35.0]
[1735165293149,0.7865,3468.2,3467.4,37.84628631]
[1735165298418,0.7865,3468.2,3467.4,40.15344631]
[1735165301156,0.7865,3468.2,3467.4,37.84628631]
[1735165301330,3.09318,3468.2,3467.3,0.8332]
[1735165301835,3.09318,3468.2,3467.3,35.8332]
[1735165316819,3.09318,3468.2,3467.4,0.99729092]
[1735165317522,3.09318,3468.2,3467.5,35.0]
[1735165319112,4.2976718,3468.2,3467.5,35.0]
[1735165319814,4.2976718,3468.2,3467.3,2.03430459]
[1735165319815,0.8022,3468.0,3467.3,1.20110459]
[1735165320312,0.8022,3468.0,3467.4,35.0]
[1735165321822,2.0066918,3468.0,3467.4,35.0]
[1735165323461,1.2044918,3467.9,3467.5,0.9994811]
[1735165324556,1.2044918,3467.9,3467.4,35.0]
[1735165325745,1.2044918,3467.9,3467.5,1.49979907]
[1735165327545,1.2044918,3467.9,3467.4,35.0]
[1735165328451,1.2044918,3467.8,3467.5,1.00005223]
[1735165329852,1.2044918,3467.9,3467.4,35.0]
[1735165331060,1.2044918,3467.9,3467.5,1.49860408]
[1735165332459,1.2044918,3467.9,3467.4,35.0]
[1735165333661,1.2044918,3467.9,3467.8,2.30693]
[1735165333866,1.2044918,3468.0,3467.9,3.09127]
[1735165335060,1.9678918,3468.6,3467.9,5.58768625]
[1735165336064,1.2044918,3468.6,3467.9,3.28081625]
[1735165336276,1.2044918,3468.7,3468.1,2.30671]
[1735165336777,1.2044918,3468.7,3468.3,0.7511]
[1735165336922,1.2044918,3468.7,3468.4,0.02882896]
[1735165337123,1.2044918,3468.7,3468.4,2.30653]
[1735165337386,1.2044918,3468.8,3468.4,2.30653]
[1735165337670,1.2044918,3468.8,3468.5,37.73206711]
[1735165338027,1.2044918,3468.8,3468.6,0.7511]
[1735165338988,2.0002918,3469.4,3468.6,4.05650884]
[1735165339188,2.0002918,3469.4,3468.7,5.1814216]
[1735165339393,1.2044918,3469.4,3468.7,5.15259631]
[1735165339593,1.2044918,3469.4,3468.8,0.7511]
[1735165339753,1.2044918,3469.4,3468.8,3.05737]
[1735165339955,1.2044918,3469.4,3468.9,3.11631263]
[1735165340491,1.2044918,3469.8,3469.1,0.7511]
[1735165341566,1.2044918,3469.8,3469.2,35.0]
[1735165342165,2.60253771,3470.0,3469.2,35.0]
[1735165342166,0.7958,3470.0,3469.2,35.0]
[1735165343593,3.10127,3470.0,3469.2,35.0]
[1735165344591,3.10127,3470.0,3469.2,2.84628631]
[1735165344793,3.10127,3470.0,3469.1,0.7511]
[1735165351419,3.10127,3470.0,3469.2,35.0]
[1735165352119,2.30556,3469.9,3469.1,0.7511]
[1735165352629,2.30556,3469.9,3469.2,35.0]
[1735165353658,0.7958,3470.0,3469.2,35.0]
[1735165353865,0.56780349,3470.2,3468.2,0.7784]
[1735165353866,0.8121,3469.7,3468.2,0.7784]
[1735165354164,0.8121,3469.1,3468.2,1.48025306]
[1735165354312,0.8121,3469.1,3468.2,0.7784]
[1735165357744,0.8121,3469.1,3468.3,0.02882864]
[1735165359487,0.8121,3469.1,3468.7,0.58390158]
[1735165360839,0.8121,3469.1,3468.2,4.28284527]
[1735165364249,0.8121,3469.1,3468.3,0.02882862]
[1735165365003,0.8121,3469.1,3468.2,4.28284527]
[1735165365203,0.8121,3469.1,3468.3,0.42828453]
[1735165367656,0.8121,3469.1,3468.4,0.02882862]
[1735165368772,0.8121,3469.1,3468.3,0.42828453]
[1735165369026,0.8121,3469.1,3468.5,2.30641]
[1735165370472,0.785,3469.4,3468.5,1.19778527]
[1735165370671,0.785,3469.4,3468.7,0.7512]
[1735165371575,0.785,3469.9,3468.8,2.30621]
[1735165371908,0.785,3469.9,3468.9,2.30618]
[1735165372156,0.785,3469.9,3469.0,35.0]
[1735165374900,0.785,3469.9,3468.9,2.30618]
[1735165375096,0.785,3469.9,3469.0,0.42551653]
[1735165375321,0.785,3469.9,3469.1,0.7512]
[1735165375526,0.785,3469.9,3469.1,3.05726]
[1735165376237,0.785,3469.9,3469.2,35.0]
[1735165380951,0.785,3469.9,3469.1,3.05726]
[1735165381251,0.785,3469.9,3469.2,0.46805618]
[1735165383571,0.785,3469.9,3469.2,2.77405618]
[1735165384951,0.785,3469.9,3469.3,35.0]
[1735165385360,0.785,3469.9,3469.3,37.30589]
[1735165385542,1.2044918,3470.0,3469.3,37.30589]
[1735165385855,1.2044918,3470.0,3469.4,2.84628631]
[1735165386026,0.7515,3470.1,3469.4,2.84628631]
[1735165386027,1.2044918,3470.1,3469.5,0.7609]
[1735165386427,1.2044918,3470.1,3469.6,37.30574]
[1735165387359,0.7515,3470.4,3469.6,38.30308352]
[1735165387532,0.7515,3470.4,3469.7,2.84628631]
[1735165387934,0.7515,3470.4,3469.7,2.30564]
[1735165388258,0.7515,3470.4,3469.8,35.0]
[1735165388930,0.7515,3470.4,3469.9,0.7609]
[1735165389129,1.9559918,3470.6,3469.9,0.7609]
[1735165389357,1.2044918,3470.6,3470.2,1.19778527]
[1735165389523,3.16048361,3470.9,3470.2,1.19778527]
[1735165389524,1.2044918,3470.8,3470.2,1.19778527]
[1735165389723,1.2044918,3470.8,3470.3,35.0]
[1735165389961,1.2044918,3470.8,3470.4,2.84628631]
[1735165390261,1.2044918,3470.8,3470.4,3.60718631]
[1735165390424,1.2044918,3470.8,3470.4,0.7609]
[1735165390627,2.37089811,3471.0,3470.4,0.7609]
[1735165390628,0.5641604,3471.0,3470.4,0.7609]
[1735165390827,0.5641604,3471.0,3470.5,35.0]
[1735165391051,0.7515,3471.1,3470.5,35.0]
[1735165391393,0.7515,3471.1,3470.6,2.84628631]
[1735165391560,0.7515,3471.1,3470.4,0.7609]
[1735165392075,0.7515,3471.1,3470.4,35.0]
[1735165392599,2.30482,3471.0,3470.1,0.7609]
[1735165392796,0.7515,3470.9,3470.1,0.7609]
[1735165394003,0.7515,3470.9,3470.2,35.0]
[1735165394168,0.7515,3470.9,3470.3,2.84628631]
[1735165394857,0.7515,3470.9,3470.1,0.7609]
[1735165395066,0.7515,3470.9,3470.1,35.7609]
[1735165397906,0.7515,3470.9,3470.1,36.95868527]
[1735165398102,0.7515,3470.9,3470.1,1.95868527]
[1735165398713,0.7515,3470.9,3470.2,35.0]
[1735165398854,0.7515,3470.9,3470.3,2.84628631]
[1735165399374,3.10055,3470.8,3470.3,2.84628631]
[1735165399595,3.10055,3470.8,3469.9,1.19778527]
[1735165399775,3.10055,3470.8,3470.0,35.0]
[1735165399993,0.7956,3470.7,3470.0,35.0]
[1735165400162,0.7956,3470.6,3469.6,3.50350527]
[1735165400351,0.7956,3470.6,3469.7,0.79089086]
[1735165400756,0.7956,3470.6,3469.9,1.19778527]
[1735165401009,0.7956,3470.4,3469.8,35.0]
[1735165403419,0.7956,3470.4,3469.8,37.30555]
[1735165404075,0.7956,3471.0,3470.0,0.8331]
[1735165404260,0.7956,3471.0,3470.1,2.87509932]
[1735165404616,0.7956,3471.0,3470.1,0.02881301]
[1735165404911,0.7956,3471.0,3470.2,35.0]
[1735165405657,0.7956,3471.0,3470.2,37.30534]
[1735165406719,0.7956,3470.9,3470.2,35.0]
[1735165406875,2.30508,3470.6,3469.7,0.79089086]
[1735165407075,0.7956,3470.5,3469.7,0.79089086]
[1735165407269,0.7956,3470.4,3469.7,35.0]
[1735165408917,2.30522,3470.4,3469.7,35.0]
[1735165409061,0.7956,3470.3,3469.7,35.0]
[1735165410631,0.7956,3470.3,3469.3,3.13902]
[1735165411135,0.7956,3470.3,3469.4,35.0]
[1735165411279,0.7956,3470.3,3469.5,2.84628631]
[1735165411480,0.8325,3470.2,3469.5,2.84628631]
[1735165411717,0.8325,3470.2,3469.3,2.30592]
[1735165411982,0.8325,3470.2,3469.6,35.0]
[1735165423957,0.8325,3470.2,3469.3,1.20689571]
[1735165424763,0.8325,3470.2,3469.4,3.69891083]
[1735165425862,0.8325,3470.2,3469.5,2.49201512]
[1735165426039,0.8325,3470.2,3469.5,3.51883172]
[1735165427026,0.8325,3470.2,3469.6,2.49201512]
[1735165428367,0.8325,3470.2,3469.7,0.99680605]
[1735165429633,0.8325,3470.2,3469.5,2.23371231]
[1735165430968,0.8325,3470.2,3469.6,0.99790535]
[1735165432495,0.8325,3470.2,3469.7,2.49526777]
[1735165433692,0.8325,3470.2,3469.8,0.99790535]
[1735165434579,0.8325,3470.2,3469.5,2.23371231]
[1735165435379,0.8325,3470.2,3469.6,2.49645818]
[1735165436442,0.8325,3470.2,3469.7,2.49645818]
[1735165437356,0.8325,3470.2,3469.8,0.99858327]
[1735165438497,0.8325,3470.2,3469.6,1.49806092]
[1735165440004,0.8325,3470.2,3469.7,0.99942494]
[1735165441182,0.8325,3470.2,3469.5,1.20689571]
[1735165441401,0.8325,3470.2,3469.5,2.34443728]
[1735165442099,0.8325,3470.2,3469.6,2.49848815]
[1735165443294,0.8325,3470.2,3469.7,2.49848815]
[1735165444305,0.8325,3470.2,3469.8,0.99939526]
[1735165445625,0.8325,3470.2,3469.6,1.20689571]
[1735165446215,2.30543,3470.1,3469.6,1.20689571]
[1735165446402,0.7855,3470.0,3469.6,1.20689571]
[1735165446807,0.7855,3470.0,3469.7,2.49882673]
[1735165447728,0.7855,3470.0,3469.8,0.99953069]
[1735165448931,1.21504218,3470.0,3469.8,0.99953069]
[1735165449230,1.21504218,3470.0,3469.5,1.20689571]
[1735165449373,0.7855,3470.0,3469.5,1.20689571]
[1735165450573,0.7855,3470.0,3469.6,2.50030337]
[1735165450884,0.8256,3469.9,3469.6,2.50030337]
[1735165451813,0.8256,3469.9,3469.7,1.00012135]
[1735165455315,0.8256,3469.9,3469.8,1.00044979]
[1735165460220,0.8256,3469.9,3469.8,2.50039259]
[1735165460718,4.2649418,3470.2,3469.8,2.50039259]
[1735165461422,4.2649418,3470.2,3469.8,1.00044979]
[1735165462726,3.06045,3470.2,3469.9,1.00044979]
[1735165462926,1.2044918,3470.3,3469.9,1.00044979]
[1735165463129,1.2044918,3470.3,3470.1,1.19706567]
[1735165463285,1.2044918,3470.3,3470.2,0.7505]
[1735165463485,1.2044918,3470.3,3470.2,0.92559498]
[1735165464103,3.76632952,3470.8,3470.2,0.92559498]
[1735165464104,0.7551,3470.8,3470.2,0.92559498]
[1735165465129,0.7551,3470.8,3470.3,2.49949618]
[1735165465130,1.2044918,3470.8,3470.3,2.49949618]
[1735165466628,1.2044918,3471.0,3470.4,2.49949618]
[1735165467220,1.2044918,3471.0,3470.5,0.7505]
[1735165467523,1.2044918,3471.0,3470.6,0.45548064]
[1735165467710,1.9595918,3471.1,3470.6,0.45548064]
[1735165469108,0.7551,3471.1,3470.6,0.45548064]
[1735165470253,0.7551,3471.1,3470.5,0.7505]
[1735165474958,0.7704,3471.3,3470.5,0.7505]
[1735165475257,3.5089918,3471.5,3470.5,0.7505]
[1735165477060,2.3045,3471.5,3470.5,0.7505]
[1735165478063,2.30455,3471.4,3470.5,0.7505]
[1735165478261,0.7704,3471.1,3470.2,1.38352491]
[1735165478562,2.30481,3471.0,3470.2,1.97922993]
[1735165479559,2.30481,3471.0,3470.2,0.7708]
[1735165481442,0.7704,3471.1,3470.2,0.7708]
[1735165481780,0.7704,3471.1,3470.3,0.307616]
[1735165482527,3.07514,3471.1,3470.3,0.307616]
[1735165484743,3.07514,3471.1,3470.4,0.02881187]
[1735165484940,1.19706567,3471.3,3470.5,0.7708]
[1735165485173,3.50169567,3471.3,3470.5,0.7708]
[1735165485576,2.30463,3471.3,3470.5,0.7708]
[1735165489764,1.2044918,3471.6,3470.5,0.7708]
[1735165490002,2.30449,3471.5,3470.5,0.7708]
[1735165490177,2.30449,3471.5,3470.6,0.3383656]
[1735165490384,2.30457,3471.4,3470.7,0.7959]
[1735165492110,2.30457,3471.4,3470.7,35.7959]
[1735165492493,2.30457,3471.4,3470.7,0.7959]
[1735165493186,2.30457,3471.4,3470.8,2.84628631]
[1735165494185,2.30441,3471.6,3470.9,0.7959]
[1735165494390,4.3342918,3471.8,3470.9,0.7959]
[1735165494588,3.1298,3471.8,3470.9,0.7959]
[1735165494908,3.1298,3471.8,3471.0,0.36421863]
[1735165495320,2.30436,3471.7,3471.0,0.36421863]
[1735165496996,3.50142567,3471.7,3471.0,0.36421863]
[1735165500825,2.30489,3470.9,3470.7,0.7992]
[1735165501021,2.30501,3470.7,3470.4,2.00762993]
[1735165501524,3.50194567,3470.9,3470.4,2.00762993]
[1735165501697,2.30488,3470.9,3470.5,1.20842993]
[1735165502819,2.30488,3470.9,3470.4,0.7992]
[1735165503199,3.0,3471.2,3470.4,0.7992]
[1735165503402,2.30475,3471.1,3470.4,0.7992]
[1735165505499,2.30475,3471.1,3470.4,0.20076299]
[1735165505717,2.30475,3471.1,3470.5,0.7992]
[1735165506828,3.5090318,3471.4,3470.6,35.0]
[1735165507033,3.5090318,3471.4,3470.7,0.7992]
[1735165507492,2.30454,3471.4,3470.7,0.7992]
[1735165507829,2.30454,3471.4,3470.8,2.84628631]
[1735165508698,2.30454,3471.4,3470.9,0.7992]
[1735165510427,1.2044918,3471.5,3470.9,0.7992]
[1735165510628,2.30473,3471.2,3470.9,0.7992]
[1735165510923,0.7589,3471.4,3470.9,0.7992]
[1735165510924,2.30476,3471.1,3470.9,0.7992]
[1735165518521,2.30476,3471.1,3470.5,35.0]
[1735165518522,2.30476,3471.1,3470.6,0.8204]
[1735165519248,2.30476,3471.1,3470.7,35.0]
[1735165520256,2.40155747,3471.3,3470.7,35.0]
[1735165520462,4.70618747,3471.3,3470.7,35.0]
[1735165523262,2.40155747,3471.3,3470.7,37.84628631]
[1735165523623,1.2044918,3471.3,3470.7,37.84628631]
[1735165524356,1.2044918,3471.3,3470.8,0.8204]
[1735165524864,3.5089718,3471.5,3470.8,1.81771646]
[1735165525744,3.5089718,3471.5,3470.8,0.8204]
[1735165526765,1.2044918,3471.5,3470.8,0.8204]
[1735165526954,2.30455,3471.4,3470.8,0.8204]
[1735165528563,3.5090418,3471.4,3470.8,0.8204]
[1735165528942,2.30463,3471.3,3470.8,0.8204]
[1735165530651,2.30463,3471.3,3470.6,35.0]
[1735165530652,0.7815,3471.2,3470.6,0.8277]
[1735165530855,0.7815,3471.2,3470.5,1.20842993]
[1735165530856,2.30495,3470.8,3470.5,1.20842993]
[1735165532594,2.30495,3470.8,3470.4,0.8277]
[1735165538336,3.08645,3470.8,3470.1,35.8277]
[1735165538933,2.30515,3470.5,3470.1,35.8277]